Cogmind - Beta 14 @@@ ROGUE MODE // 2024.09.13 @ 05:34:37 Player: Daffa0360 Result: Destroyed by G-34 Mercenary with Small Laser Performance ------------- Evolutions (1) 500 Regions Visited (4) 800 Robots Destroyed (21) 105 Value Destroyed (503) 503 Prototype IDs (6) 120 Alien Tech Used (0) 0 Bonus (2) 2 TOTAL SCORE: 2030 Bonus ------- High Alert Combat Kills 2 Cogmind --------- Core Integrity 0/400 Matter 300/300 Energy 200/200 System Corruption 0% Temperature Cool (6) Movement Walking (260) Ox2 Location -9/Storage Parts ------- > --- POWER (1) -------- Cold Fusion Reactor > --- PROPULSION (2) --- Aluminum Leg > --- UTILITY (4) ------ Small Storage Unit Visual Processing Unit > --- WEAPON (2) ------- Improved Assault Rifle Maul > --- INVENTORY (8) ---- Cooled Ion Engine Signal Interpreter Improved Terrain Scanner Shield Generator Particle Gun Improved Medium Laser Rocket Launcher Hammer Peak State ------------ > --- POWER ------------ Cold Fusion Reactor > --- PROPULSION ------- Aluminum Leg > --- UTILITY ---------- Small Storage Unit Visual Processing Unit Seismic Detector > --- WEAPON ----------- Improved Assault Rifle Maul > --- INVENTORY -------- Signal Interpreter Improved Terrain Scanner Shield Generator Small Laser Particle Gun Improved Medium Laser Rocket Launcher Hammer [Rating: 17] Favorites ----------- Power Light Ion Engine Engine Light Ion Engine Power Core Light Nuclear Core Reactor Cold Fusion Reactor Propulsion Aluminum Leg Leg Aluminum Leg Wheel Wheel Utility Small Storage Unit Device Seismic Detector Storage Small Storage Unit Processor Visual Processing Unit Weapon Assault Rifle Energy Gun Small Laser Ballistic Gun Assault Rifle Launcher Rocket Launcher Impact Weapon Maul Build | -11 -10 -10 -9 -9 ------- Run | Yrd Mat Min Mat Sto Slots Evolved 2 | . . . 2 . Power . | . . . . . Propulsion . | . . . . . Utility 2 | . . . 2 . Weapon . | . . . . . Parts Attached 21 | . 2 2 10 7 Power 4 | . 1 1 1 1 Engine 2 | . . 1 1 . Core 1 | . 1 . . . Reactor 1 | . . . . 1 Propulsion 5 | . 1 1 2 1 Treads . | . . . . . Leg 3 | . 1 1 . 1 Wheel 2 | . . . 2 . Hover . | . . . . . Flight . | . . . . . Utility 4 | . . . 4 . Device 2 | . . . 2 . Storage 1 | . . . 1 . Processor 1 | . . . 1 . Hackware . | . . . . . Protection . | . . . . . Artifact . | . . . . . Weapon 8 | . . . 3 5 Energy Gun 2 | . . . . 2 Energy Cannon . | . . . . . Ballistic Gun 1 | . . . . 1 Ballistic Cannon . | . . . . . Launcher 1 | . . . 1 . Special Weapon . | . . . . . Impact Weapon 4 | . . . 2 2 Slashing Weapon . | . . . . . Piercing Weapon . | . . . . . Special Melee Weapon . | . . . . . Unidentified Prototypes 3 | . . . . 3 Parts Lost 7 | . . 1 4 2 Power 2 | . . 1 1 . Propulsion 3 | . . . 2 1 Utility 2 | . . . 1 1 Weapon . | . . . . . Highest Loss Streak 4 | . . 1 4 1 To Critical Strikes . | . . . . . Average Slot Usage (%) 78 | . 85 84 81 68 Engine 7 | . 12 12 9 . Reactor 1 | . . . . 5 Leg 18 | . 28 28 18 5 Wheel 1 | . . . 2 3 Device 7 | . . . 12 10 Storage 12 | . 14 14 11 11 Processor 4 | . . . 4 11 Energy Gun 6 | . 14 14 1 1 Ballistic Gun 7 | . 14 14 4 1 Impact Weapon 9 | . . . 14 17 Peak Build Rating 17 | 6 9 9 12 17 Average Rating 9 | 6 6 7 9 12 On Entrance 7 | 6 6 9 7 10 Naked Turns . | . . . . . Heaviest Build 24 | 11 13 11 17 24 Greatest Support 20 | 20 20 20 20 10 Greatest Overweight (x) 3 | . . . 3 3 Average Overweight (x) . | . . . . 1 Largest Inventory Capacity 8 | 8 8 8 8 8 Average Capacity 8 | 8 8 8 8 8 Most Carried 8 | 7 8 8 8 8 Average Carried 7 | 5 7 7 7 7 Final Capacity 8 | 8 8 8 8 8 Final Carried 8 | 6 8 8 7 8 Class Distribution -------------------- 92% | Mutant 7% | Scavenger-Mutant Dominant Class ---------------- Mutant | -10/Materials Mutant | -10/Mines Mutant | -9/Materials Mutant | -9/Storage Resources | -11 -10 -10 -9 -9 ----------- Run | Yrd Mat Min Mat Sto Matter Collected 487 | 224 51 50 30 132 Remotely . | . . . . . Salvage Created 648 | 135 138 95 200 80 Parts 40 | 9 9 4 18 . Haulers Intercepted 2 | . . . 1 1 Recyclers Shooed . | . . . . . Parts Field Recycled . | . . . . . Retrieved Matter . | . . . . . Parts Self-Destructed . | . . . . . Prevented . | . . . . . Kills | -11 -10 -10 -9 -9 ------- Run | Yrd Mat Min Mat Sto Combat Hostiles Destroyed 14 | . 2 2 8 2 Melee 2 | . . . 2 . Guns 4 | . 2 2 . . AOE 6 | . . . 6 . Classes Destroyed 7 | 2 2 . 3 . Tunneler 2 | 2 . . . . Hauler 2 | . . . 1 1 Recycler 1 | 1 . . . . Watcher 2 | . 2 . . . Swarmer 5 | . . . 4 1 Grunt 7 | . 2 2 3 . Sentry 2 | . . . 1 1 Best Kill Streak 6 | 1 2 1 6 1 Combat Bots Only 6 | . 2 1 6 1 Max Kills in Single Turn 3 | 1 1 1 3 1 Gunslinging . | . . . . . Exploded 3 | . . . 3 . Melee 1 | . . . 1 . Uniques/NPCs Destroyed . | . . . . . Combat | -11 -10 -10 -9 -9 -------- Run | Yrd Mat Min Mat Sto Hostile Shots Fired 120 | . 18 18 51 33 Missed 42 | . 6 7 23 6 Damage Taken 1235 | . 175 171 523 366 Core 447 | . . 40 193 214 Absorbed by Shields . | . . . . . Core Remaining (%) 92 | 100 . 84 . . Volleys Fired 33 | 8 11 11 2 1 Largest 2 | 2 2 2 1 1 Hottest 60 | 60 60 60 33 56 Shots Fired 63 | 16 22 22 2 1 Gun 61 | 16 22 22 . 1 Cannon . | . . . . . Launcher 2 | . . . 2 . Special . | . . . . . Kinetic 30 | 8 11 11 . . Thermal 31 | 8 11 11 . 1 Explosive 2 | . . . 2 . Electromagnetic . | . . . . . Robot Hit Streak 12 | 3 12 7 . . Robot Miss Streak 2 | 2 1 2 . 1 Penetration Max . | . . . . . Secondary Targets 1 | . 1 . . . Max Gunslinging Chain 1 | . 1 . . . Shots Hit Robots 65 | 9 19 15 6 16 Core Hits 26 | 4 9 5 8 . Critical Kills 2 | . 1 . 1 . Critical Parts Destroyed 5 | . . . 2 3 Critical Strikes 7 | . 1 . 3 3 Destroy 1 | . 1 . . . Smash 6 | . . . 3 3 Melee Attacks 34 | . . . 12 22 Impact 34 | . . . 12 22 Slashing . | . . . . . Piercing . | . . . . . Sneak Attacks 3 | . . . 2 1 Combat Hostiles . | . . . . . Follow-up Attacks 5 | . . . 2 3 Damage Inflicted 1747 | 115 224 177 725 506 Guns 516 | 115 224 177 . . Cannons . | . . . . . Explosions 456 | . . . 456 . Melee 775 | . . . 269 506 Ramming . | . . . . . Kinetic 292 | 68 124 100 . . Thermal 224 | 47 100 77 . . Explosive 456 | . . . 456 . Electromagnetic . | . . . . . Impact 775 | . . . 269 506 Slashing . | . . . . . Piercing . | . . . . . Highest Corruption . | . . . . . Average Corruption . | . . . . . Corruption Purged . | . . . . . Corruption Blocked . | . . . . . Overload Shots . | . . . . . Overflow Damage 450 | . . . 252 198 Projectiles . | . . . . . Explosions 80 | . . . 80 . Melee 370 | . . . 172 198 Knockbacks 1 | . . . 1 . Impact 1 | . . . 1 . Kinetic . | . . . . . Secondary . | . . . . . Self-Inflicted Damage 213 | . . . 213 . Shots 2 | . . . 2 . Rammed . | . . . . . Targets Rammed . | . . . . . Kicked . | . . . . . Crushed . | . . . . . Highest Temperature 158 | . 75 158 5 9 Average Temperature 59 | . 27 89 5 9 Received Heat Transfer 426 | . 117 111 87 111 Siege Activations . | . . . . . Robots Corrupted 4 | . . . 1 3 Combat Hostiles 2 | . . . . 2 Parts Fried 5 | . . . 2 3 Impact Corruptions 12 | . . . 4 8 Robots Melted . | . . . . . Combat Hostiles . | . . . . . Parts Melted . | . . . . . Heat Transferred 500 | 100 225 175 . . Parts Sabotaged . | . . . . . Parts Stolen . | . . . . . Parts Stripped . | . . . . . Power Chain Reactions . | . . . . . Alert | -11 -10 -10 -9 -9 ------- Run | Yrd Mat Min Mat Sto Peak Influence 420 | 15 78 70 420 224 Initial 92 | . 9 30 27 92 Average 96 | 8 25 67 130 146 Maximum Alert Level 2 | . . . 2 1 Low Security (%) 87 | 100 100 100 84 69 Level 1 12 | . . . 12 30 Level 2 . | . . . 3 . Level 3 . | . . . . . Level 4 . | . . . . . Level 5 . | . . . . . High Security . | . . . . . Max Security . | . . . . . Squads Dispatched 1 | . . . 1 . Investigation . | . . . . . Extermination . | . . . . . Reinforcement 1 | . . . 1 . Assault . | . . . . . Garrison . | . . . . . Intercept . | . . . . . Searches Triggered . | . . . . . Construction Impeded 1 | . . . 1 . Haulers Reinforced . | . . . . . Active Scanning Responses . | . . . . . Cargo Convoy Interrupts . | . . . . . Stealth | -11 -10 -10 -9 -9 --------- Run | Yrd Mat Min Mat Sto Distress Signals 3 | . . . 3 . Communications Jammed . | . . . . . Distress Signals . | . . . . . Times Spotted 36 | . 5 2 21 8 Peak Tracking Total 10 | . 2 2 10 3 Tactical Retreats 5 | . . . 3 2 Traps | -11 -10 -10 -9 -9 ------- Run | Yrd Mat Min Mat Sto Traps Triggered . | . . . . . Indirectly . | . . . . . Trap Hack Attempts . | . . . . . Triggered . | . . . . . Disarmed . | . . . . . Reprogrammed . | . . . . . Reused . | . . . . . Traps Extracted . | . . . . . Installed . | . . . . . Triggered . | . . . . . Machines | -11 -10 -10 -9 -9 ---------- Run | Yrd Mat Min Mat Sto Machines Disabled 3 | . . . 2 1 Max in Single Turn 2 | . . . 2 1 Machines Repaired . | . . . . . Machines Dismantled . | . . . . . Machines Sabotaged . | . . . . . Overloaded Fab Kills . | . . . . . Hacking | -11 -10 -10 -9 -9 --------- Run | Yrd Mat Min Mat Sto Machines Accessed 4 | . 1 . 2 1 Terminals 4 | . 1 . 2 1 Fabricators . | . . . . . Repair Stations . | . . . . . Recycling Units . | . . . . . Scanalyzers . | . . . . . Garrison Access . | . . . . . Total Hacks 18 | . 7 . 7 4 Successful 7 | . 2 . 4 1 Failed 11 | . 5 . 3 3 Catastrophic 1 | . 1 . . . Database Lockouts . | . . . . . Manual . | . . . . . Terminals 18 | . 7 . 7 4 Fabricators . | . . . . . Repair Stations . | . . . . . Recycling Units . | . . . . . Scanalyzers . | . . . . . Garrison Access . | . . . . . Terminal Hacks 7 | . 2 . 4 1 Robot Analysis 1 | . . . 1 . Prototype ID Bank 2 | . 1 . 1 . Open Door 1 | . . . . 1 Alert Level 1 | . . . 1 . Locate Traps 2 | . 1 . 1 . Fabricator Hacks . | . . . . . Repair Station Hacks . | . . . . . Recycling Unit Hacks . | . . . . . Scanalyzer . | . . . . . Garrison Access Hacks . | . . . . . Unauthorized Hacks . | . . . . . Terminals . | . . . . . Fabricators . | . . . . . Repair Stations . | . . . . . Recycling Units . | . . . . . Scanalyzers . | . . . . . Garrison Access . | . . . . . Data Cores Recovered . | . . . . . Used . | . . . . . Hacking Detections 4 | . 1 . 2 1 Full Trace Events 1 | . 1 . . . Feedback Events . | . . . . . Feedback Blocked . | . . . . . Robot Schematics Acquired . | . . . . . Robots Built . | . . . . . Authchips . | . . . . . Time . | . . . . . Total Robot Build Rating . | . . . . . Part Schematics Acquired . | . . . . . Parts Built . | . . . . . Authchips . | . . . . . Time . | . . . . . Total Part Build Rating . | . . . . . Parts Repaired . | . . . . . Time . | . . . . . Parts Recycled . | . . . . . Recycled Matter . | . . . . . Retrieved Matter . | . . . . . Retrieved Components . | . . . . . Parts Scanalyzed . | . . . . . Part Schematics Acquired . | . . . . . Parts Damaged . | . . . . . Bothacking | -11 -10 -10 -9 -9 ------------ Run | Yrd Mat Min Mat Sto Used RIF Installer . | . . . . . Robots Hacked . | . . . . . Non-combat . | . . . . . Combat . | . . . . . Robot Hacks Applied . | . . . . . Relay Couplers Released . | . . . . . Fabnet Peak Effective % . | . . . . . Robots Rewired . | . . . . . Allies Hacked . | . . . . . Hacks Repelled . | . . . . . Allies | -11 -10 -10 -9 -9 -------- Run | Yrd Mat Min Mat Sto Total Allies . | . . . . . Largest Group . | . . . . . Highest-Rated Group . | . . . . . Highest-Rated Ally . | . . . . . Total Orders . | . . . . . Ally Attacks . | . . . . . Total Damage . | . . . . . Kills . | . . . . . Allies Corrupted . | . . . . . Allies Melted . | . . . . . Intel | -11 -10 -10 -9 -9 ------- Run | Yrd Mat Min Mat Sto Robot Analysis Total 1 | . . . 1 . Derelict Logs Recovered 1 | . . 1 . . Drone Launches . | . . . . . Drone Recoveries . | . . . . . Exploration | -11 -10 -10 -9 -9 ------------- Run | Yrd Mat Min Mat Sto Turns Passed 1433 | 90 249 274 428 392 Spaces Moved 863 | 53 168 155 314 173 Core 20 | . . . 1 19 Treads . | . . . . . Legs 691 | 53 168 155 252 63 Wheels 152 | . . . 61 91 Hover . | . . . . . Flight . | . . . . . Fastest Speed 80 | 120 120 120 95 80 Average Speed 127 | 120 120 120 115 166 Slowest Speed 260 | 120 120 120 200 260 Overloaded Moves . | . . . . . Propulsion Burnouts . | . . . . . Robots Hopped . | . . . . . Cave-ins Triggered . | . . . . . Exploration Rate (%) 27 | 5 33 37 43 21 Regions Visited 4 Branch Regions 2 Pre-discovered Areas . | . . . . . Known Exits Taken 1 | . . . 1 . Unknown Exits Taken 3 | 1 1 1 . . Scrap Searched . | . . . . . Spaces Dug 6 | . . . 3 3 Terrain Destroyed 65 | . . . 62 3 Melee 6 | . . . 3 3 Projectile . | . . . . . AOE 59 | . . . 59 . Terrain Rammed . | . . . . . Walls Destroyed . | . . . . . Machines Disabled . | . . . . . Actions | -11 -10 -10 -9 -9 --------- Run | Yrd Mat Min Mat Sto Total 1072 | 64 195 221 357 235 Wait 106 | . 9 51 16 30 Move 859 | 52 167 154 313 173 Hop . | . . . . . Pick Up 13 | 2 3 2 3 3 Fast Attach 3 | . . . 1 2 Attach 6 | . . 1 4 1 Detach . | . . . . . Swap 12 | . 2 1 5 4 Drop 11 | 2 3 1 3 2 Fire 33 | 8 11 11 2 1 Melee 29 | . . . 10 19 Ram . | . . . . . Kick . | . . . . . Crush . | . . . . . Escape Stasis . | . . . . . Rewire . | . . . . . Trap . | . . . . . Miscellaneous . | . . . . . Route ------- -11/Scrapyard -10/Materials -10/Mines -9/Materials (discovered 3 exits: [*Min x2] / *Sto) -9/Storage History --------- Turn | Location | Event 1 | -11/Scrapyard | Discovered new exit (range 1) 91 | -11/Scrapyard | Entered Materials 261 | -10/Materials | Discovered new exit (range 13) 314 | -10/Materials | Build established: Mutant 340 | -10/Materials | Entered Mines 602 | -10/Mines | Discovered new exit (range 10) 614 | -10/Mines | Entered Materials 614 | -9/Materials | Evolved 2 slots: Utility x2 615 | -9/Materials | Identified exit to Storage 952 | -9/Materials | Discovered new exit (range 9) 973 | -9/Materials | Discovered new exit (range 14) 1042 | -9/Materials | Entered Storage 1044 | -9/Storage | Lost 4 parts (1p2n1u) 1150 | -9/Storage | Core integrity fell below 50% 1195 | -9/Storage | Core integrity fell below 20% 1434 | -9/Storage | Destroyed by G-34 Mercenary with Small Laser Last Messages --------------- 01315_ S-10 Pest system corrupted by crushing effect. 01315_ S-10 Pest misfires. 01316_ S-10 Pest system terminally corrupted. 01316_ Lgt. Assault Rifle fried. 01318_ Acquired 10 matter. 01348_ Acquired 74 matter. 01358_ Storage Shell breached. 01366_ Acquired Prototype Ballistic Gun. 01367_ Identified Imp. Assault Rifle. 01374_ Dropped Sml. Laser. 01375_ Acquired Prototype Engine. 01376_ K-01 Serf collects debris. 01407_ C-30 ARC bursts open, deploying its payload. 01407_ B-36 Bruiser unfolds itself. 01407_ G-34 Mercenary unfolds itself. 01413_ Seismic Detector destroyed. 01425_ K-01 Serf destroyed. 01430_ Acquired 5 matter. Map ----- +----------------------------------------------------+ | ??????????????????????????????????????# #????? | | ??????????????????????????????????????# #????? | | ??????????????????????????????????????# #????? | | ??????????????????????????????????????# #????? | | ??????????????????????????????????????# #????? | | ??????????????????????????????????????# #????? | | ??????????????????????????????????????# #????? | | ??????????????????????????????????????# #????? | | ??????????????????????????????????????# #????? | | ??????????????????????????????????????# #????? | | ??????????????????????????????????????# #????? | | ??????????????????????????????????????# [[#????? | | ?????????????????????????????+#???????# [ #????? | | ?????????????????????????????? ??????# [[#????? | | ??????????????????????????????? ??????# #????? | | ????????????????????###????????# ?????# #????? | | ????????????????????# ????????# ????# #????? | | ????????????????????/ ?""""?#?# ##### #????? | | ????????????????????# ?"=[" #?# #????? | | ????????????????????# """ [" #?# #????? | | ????????????????????# "*]""" #?# #????? | | ????????????????????# "[["" #?# #????? | | ????# #############="" " #?# ### #????? | | ????# "%" %+g #?# ???# ###### | | ????+ ############# #?#????# # # | | ????????????????????#####@####??????# # [# | | ???????????????????????##%#?????????# # ! # | | ???????????????????????## #?????????# # # | | ???????????????????????##^#?????????# # # | | ???????????????????????##^#?????????# # ! # | | ???????????????????????## #????###### #! # | | ????????????????????????# #????# # ! # | | ????????????????????????# #????# +! # | | ????????????????????????# #????# ######+#####? | | ???????????????????????## ##???# #??# = ! #?? | | ???????????????????????# ##### #### [#?? | | ???????????????????##### +% #?? | | ???????????????????# + ############ #?? | | ???????????????????###T#####??????????#! [ #?? | | ?????????????????????###??????????????# #?? | | ???????????????????????????????????????#######?? | | | | | | | | | | | | | | | | | | | +----------------------------------------------------+ Best States ------------- Heat Dissipation 28 Energy Generation 17 Energy Capacity 250 Matter Stores 300 Matter Capacity 300 Sight Range 18 Robot Scan Range 14 Terrain Scan Density 10 Evasion (%) 55 Item Schematics ----------------- None Robot Schematics ------------------ None Fabricated ------------ Nothing Alien Tech Used ----------------- None Achievements -------------- None Challenges ------------ None Game ------ Seed WaveDroneSpear Manual? 0 Play Time 00:11:14 Cumulative 90.1 hours Start 2024.09.13 @ 05:23:45 End 2024.09.13 @ 05:34:37 Sessions 1 Manual Loads 0 Difficulty Rogue Special Mode None Game No. 144 Rogue 140 Adventurer 4 Explorer 0 Win Type - Total 0 Types 0/0/0/0/0/0/0/0/0 Lore% 41 Gallery% 52 Achievement% 40 Wizard Run 0 Options --------- Layout 2 ASCII 0 Keyboard 0 Movement Mouse Keybinds 0 Fullscreen 2 Font 24/Smallcaps Map View 50x44 Zoom Use 0% Tactical HUD 1 Map Filters NONE Filters NONE Steam 1 RUN: c4c6175f-590a-4e11-bdd6-64d0fd663429